bitfinex/quotes_BTCUSD_20250505
["timestamp","ask_amount","ask_price","bid_price","bid_amount"]
[1746467066172,0.5,94690.0,94689.0,0.23919324]
[1746467066375,0.5,94690.0,94689.0,0.02797547]
[1746467066638,0.5,94690.0,94689.0,0.23919324]
[1746467067167,0.71121554,94690.0,94689.0,0.01157547]
[1746467068443,0.5,94690.0,94689.0,0.01157547]
[1746467069088,0.5,94690.0,94689.0,0.21779324]
[1746467069239,0.5,94690.0,94689.0,0.22079324]
[1746467069592,0.5,94690.0,94689.0,0.22279324]
[1746467069746,0.5,94690.0,94689.0,0.21579324]
[1746467069947,0.51656261,94690.0,94689.0,0.22121116]
[1746467076672,0.5,94690.0,94689.0,0.22121116]
[1746467076872,0.5,94690.0,94689.0,0.25281116]
[1746467077528,0.5,94690.0,94689.0,0.23021116]
[1746467079820,0.51656271,94690.0,94689.0,0.23021116]
[1746467084671,0.51656271,94690.0,94689.0,0.22321116]
[1746467085079,0.51656271,94690.0,94689.0,0.20721116]
[1746467086792,0.5,94690.0,94689.0,0.20721116]
[1746467087391,0.5,94690.0,94689.0,0.22163569]
[1746467087798,0.71121554,94690.0,94689.0,0.01041792]
[1746467088039,0.71121554,94690.0,94689.0,0.005]
[1746467088416,0.71121554,94690.0,94689.0,0.01035555]
[1746467088610,0.71121554,94690.0,94689.0,0.002]
[1746467088812,0.71121554,94690.0,94689.0,0.00735555]
[1746467089144,0.71121554,94690.0,94689.0,0.00835555]
[1746467089497,0.22178731,94686.0,94683.0,0.21123044]
[1746467089693,0.22178731,94686.0,94684.0,0.00536182]
[1746467089895,0.22178384,94687.0,94684.0,0.2165899]
[1746467090249,0.5,94690.0,94689.0,0.21121777]
[1746467090645,0.2217756,94691.0,94689.0,0.00737971]
[1746467090855,0.21121554,94690.0,94689.0,0.00537971]
[1746467091017,0.2277777,94690.0,94689.0,0.00537971]
[1746467091224,0.22178352,94687.0,94684.0,0.21122683]
[1746467091625,0.01056111,94687.0,94685.0,0.2112247]
[1746467092200,0.22178334,94687.0,94686.0,0.00538347]
[1746467093218,0.01056111,94687.0,94686.0,0.00538347]
[1746467093584,0.01056111,94687.0,94686.0,0.00838347]
[1746467095551,0.01056111,94687.0,94686.0,0.01238347]
[1746467095840,0.21122216,94688.0,94686.0,0.01238347]
[1746467096046,0.22178261,94689.0,94686.0,0.22360737]
[1746467096895,0.22178261,94689.0,94686.0,0.22060737]
[1746467097098,0.22178261,94689.0,94686.0,0.21860737]
[1746467097450,0.22178261,94689.0,94686.0,0.22160737]
[1746467097860,0.22178041,94690.0,94687.0,0.21122004]
[1746467098063,0.21122,94688.0,94686.0,0.21860737]
[1746467098274,0.01056088,94689.0,94686.0,0.2162239]
[1746467098471,0.22178,94689.0,94686.0,0.005]
[1746467098674,0.21122115,94688.0,94686.0,0.002]
[1746467098978,0.22178,94689.0,94687.0,0.003]
[1746467099639,0.23834281,94689.0,94687.0,0.003]
[1746467099842,0.21122,94688.0,94687.0,0.003]
[1746467100247,0.221781,94688.0,94685.0,0.21122637]
[1746467100454,0.221781,94688.0,94686.0,0.003]
[1746467100929,0.56966247,94687.0,94686.0,0.003]
[1746467101226,0.56966247,94687.0,94672.0,0.01056278]
[1746467101227,0.20072078,94681.0,94676.0,0.21124654]
[1746467101433,0.01056166,94682.0,94678.0,0.21124154]
[1746467101634,0.01056211,94678.0,94676.0,0.21124664]
[1746467101807,0.010562,94679.0,94676.0,0.21124664]
[1746467101808,0.22180226,94679.0,94676.0,0.21124664]
[1746467101948,0.21123609,94681.0,94678.0,0.21124231]
[1746467102368,0.01656407,94679.0,94678.0,0.21124231]
[1746467103388,0.01656407,94679.0,94677.0,0.21124435]
[1746467103629,0.01056222,94677.0,94675.0,0.21124795]
[1746467104039,0.01656407,94679.0,94678.0,0.21124231]
[1746467105451,0.01656407,94679.0,94678.0,0.21524231]
[1746467106715,0.22179516,94682.0,94678.0,0.21524231]
[1746467106891,0.21124008,94679.0,94678.0,0.004]
[1746467107100,0.21124008,94679.0,94678.0,0.01239762]
[1746467107410,0.21124008,94679.0,94678.0,0.007]
[1746467107411,0.56734008,94679.0,94678.0,0.007]
[1746467107625,0.56734008,94679.0,94678.0,0.003]
[1746467107823,0.2112557,94672.0,94671.0,0.0031361]
[1746467108051,0.20520006,94672.0,94671.0,0.0085425]
[1746467108262,0.20520006,94672.0,94671.0,0.0031361]
[1746467108403,0.20520006,94672.0,94671.0,0.0085425]
[1746467109161,0.25105871,94672.0,94671.0,0.0085425]
[1746467109390,0.24841794,94672.0,94671.0,0.0085425]
[1746467109597,0.21125513,94673.0,94671.0,0.0085425]
[1746467109871,0.01056222,94677.0,94674.0,0.21124952]
[1746467110197,0.26471651,94677.0,94675.0,0.00550247]
[1746467110315,0.02712725,94677.0,94675.0,0.00550247]
[1746467110516,0.02712725,94677.0,94675.0,0.21124891]
[1746467110517,0.35656503,94677.0,94675.0,0.21124891]
[1746467110721,0.35656503,94677.0,94676.0,0.21124677]
[1746467110964,0.35656503,94677.0,94676.0,0.21674798]
[1746467111164,0.35656503,94677.0,94676.0,0.24714798]
[1746467111165,0.01656503,94677.0,94676.0,0.24714798]
[1746467112115,0.01656503,94677.0,94676.0,0.23174798]
[1746467112443,0.22780957,94677.0,94676.0,0.00750121]
[1746467112816,0.22780957,94677.0,94676.0,0.002]
[1746467113236,0.22780957,94677.0,94676.0,0.003]
[1746467113437,0.22780957,94677.0,94676.0,0.001]
[1746467113612,0.22780957,94677.0,94676.0,0.05608398]
[1746467113783,0.22780957,94677.0,94676.0,0.0505669]
[1746467113982,0.22780957,94677.0,94676.0,0.0485669]
[1746467114183,0.22780957,94677.0,94676.0,0.0495669]
[1746467114391,0.22780957,94677.0,94676.0,0.0455669]
[1746467114621,0.22780957,94677.0,94676.0,0.05109932]
[1746467115550,0.22780957,94677.0,94676.0,0.00753242]
[1746467116016,0.58300957,94677.0,94676.0,0.00753242]
[1746467116336,0.58300957,94677.0,94676.0,0.002]
[1746467116649,0.56644454,94677.0,94676.0,0.002]
[1746467117815,1.26374454,94677.0,94676.0,0.002]
[1746467119742,1.28031036,94677.0,94676.0,0.002]
[1746467120074,1.26374454,94677.0,94676.0,0.002]
[1746467120248,1.28031032,94677.0,94676.0,0.002]
[1746467120404,1.26511032,94677.0,94676.0,0.002]
[1746467122976,1.28101032,94677.0,94676.0,0.002]
[1746467124945,1.26511032,94677.0,94676.0,0.002]
[1746467125148,1.24854454,94677.0,94676.0,0.002]
[1746467128350,1.24854454,94677.0,94676.0,0.00760668]
[1746467128987,1.0373,94677.0,94676.0,0.21885345]
[1746467129122,1.0373,94677.0,94676.0,0.00760668]
[1746467129324,1.24854454,94677.0,94676.0,0.00760668]
[1746467129525,1.24854454,94677.0,94676.0,0.002]
[1746467129748,1.24854454,94677.0,94676.0,0.00760668]
[1746467130165,1.05386546,94677.0,94676.0,0.21885345]
[1746467130989,1.05386546,94677.0,94676.0,0.25025345]
[1746467130990,0.71386546,94677.0,94676.0,0.25025345]
[1746467131988,0.71386546,94677.0,94676.0,0.24925345]
[1746467132202,0.71386546,94677.0,94676.0,0.24825345]
[1746467132527,0.71386546,94677.0,94676.0,0.24925345]
[1746467132730,0.71386546,94677.0,94676.0,0.34209376]
[1746467132857,0.71386546,94677.0,94676.0,0.34109376]
[1746467133063,0.71386546,94677.0,94676.0,0.25325345]
[1746467133685,0.71386546,94677.0,94676.0,0.24825345]
[1746467134093,0.71386546,94677.0,94676.0,0.25225345]
[1746467134432,0.71386546,94677.0,94676.0,0.24825345]
[1746467134658,0.71386546,94677.0,94676.0,0.25225345]
[1746467135285,0.71386546,94677.0,94676.0,0.25725345]
[1746467135863,0.01656546,94677.0,94676.0,0.30475522]
[1746467136565,0.01056033,94694.0,94689.0,0.22177861]
[1746467136766,0.01056033,94694.0,94690.0,0.21121111]
[1746467136911,0.01056033,94694.0,94690.0,0.21667434]
[1746467137111,0.01056033,94694.0,94690.0,0.21121111]
[1746467137965,0.56176332,94696.0,94693.0,0.21120855]
[1746467138180,0.01056033,94694.0,94691.0,0.21121163]
[1746467138478,0.01056033,94694.0,94692.0,0.21121095]
[1746467139455,0.01056021,94695.0,94692.0,0.21121095]
[1746467139879,0.01656288,94694.0,94692.0,0.21121095]
[1746467140080,0.51656288,94694.0,94692.0,0.21121095]
[1746467140285,0.51656288,94694.0,94691.0,0.21120901]
[1746467140286,0.73833066,94694.0,94691.0,0.21120901]
[1746467140686,0.22177007,94693.0,94689.0,0.001]
[1746467140883,0.0026402,94692.0,94690.0,0.21121338]
[1746467141137,0.01056044,94693.0,94690.0,0.21121338]
[1746467141512,0.02712321,94694.0,94692.0,0.21121108]
[1746467141739,0.02712321,94694.0,94692.0,0.20421108]
[1746467141874,0.01656288,94694.0,94692.0,0.20421108]
[1746467142520,0.01056044,94693.0,94691.0,0.21121305]
[1746467142690,0.2383319,94694.0,94691.0,0.21121305]
[1746467144041,0.02712321,94694.0,94685.0,0.21122617]
[1746467144271,0.2244107,94693.0,94690.0,0.21121514]
[1746467144470,0.2217705,94693.0,94690.0,0.21121514]
[1746467144840,0.00264019,94692.0,94690.0,0.21121514]
[1746467145043,0.00264019,94692.0,94691.0,0.21121291]
[1746467145401,0.02712321,94694.0,94692.0,0.21121048]
[1746467145859,0.02712321,94694.0,94693.0,0.00545947]
[1746467146179,0.02712321,94694.0,94692.0,0.21121048]
[1746467146327,0.24096999,94694.0,94693.0,0.00545947]
[1746467146534,0.23832983,94694.0,94693.0,0.00545947]
[1746467146792,0.23832983,94694.0,94692.0,0.21121089]
[1746467146793,0.52712321,94694.0,94692.0,0.21121089]
[1746467146950,0.73832983,94694.0,94693.0,0.00548095]
[1746467147375,0.21121108,94692.0,94691.0,0.001]
[1746467147581,0.72176695,94694.0,94691.0,0.001]
[1746467147778,0.00264019,94693.0,94691.0,0.001]
[1746467148000,0.21121108,94692.0,94691.0,0.001]
[1746467148206,0.58191108,94692.0,94691.0,0.001]
[1746467148359,0.58191108,94692.0,94691.0,0.002]
[1746467148579,0.58191108,94692.0,94691.0,0.001]
[1746467148783,0.010563,94670.0,94667.0,0.2112666]
[1746467149099,0.22182293,94671.0,94669.0,0.21126206]
[1746467149339,0.01056267,94673.0,94668.0,0.01056323]
[1746467149490,0.01056256,94674.0,94672.0,0.21125521]
[1746467150087,1.0373,94678.0,94677.0,0.24244454]
[1746467150306,0.6973,94678.0,94677.0,0.24244454]
[1746467150956,0.71386357,94678.0,94677.0,0.24244454]
[1746467152036,0.71386357,94678.0,94677.0,0.24644454]
[1746467152394,0.71386357,94678.0,94677.0,0.25189689]
[1746467152923,0.71386357,94678.0,94677.0,0.25689689]
[1746467153758,0.01656357,94678.0,94677.0,0.25689689]
[1746467156616,0.0026401,94697.0,94696.0,0.21120216]
[1746467156817,0.34,94698.0,94697.0,0.21119993]
[1746467157162,0.34,94699.0,94697.0,0.21662721]
[1746467158481,0.34,94699.0,94697.0,0.00542728]
[1746467158717,0.56629696,94699.0,94697.0,0.00542728]
[1746467158922,0.22893774,94698.0,94697.0,0.00542728]
[1746467159119,0.21122737,94685.0,94680.0,0.21123571]
[1746467159459,0.01056144,94684.0,94681.0,0.21123467]
[1746467159668,0.22180007,94680.0,94674.0,0.01056256]
[1746467159990,0.01056189,94680.0,94678.0,0.21124231]
[1746467160194,0.01056189,94680.0,94673.0,5.752e-05]
[1746467160195,0.21124967,94675.0,94673.0,5.752e-05]
[1746467160421,0.21125124,94674.0,94673.0,5.752e-05]
[1746467160960,0.22635124,94674.0,94673.0,5.752e-05]
[1746467161160,0.24291677,94674.0,94673.0,5.752e-05]
[1746467161364,0.78544249,94674.0,94673.0,5.752e-05]
[1746467161700,0.74291677,94674.0,94673.0,5.752e-05]
[1746467162416,1.78021677,94674.0,94673.0,0.00105752]
[1746467162638,1.78021677,94674.0,94673.0,0.00305752]
[1746467163510,1.79681677,94674.0,94673.0,0.00305752]
[1746467163818,1.84043058,94674.0,94673.0,0.00305752]
[1746467165332,1.82383058,94674.0,94673.0,0.00305752]
[1746467165547,1.5373,94674.0,94673.0,0.21431099]
[1746467165755,1.1973,94674.0,94673.0,0.24551099]
[1746467165962,1.1973,94674.0,94673.0,0.2510308]
[1746467166286,1.1973,94674.0,94673.0,0.00857733]
[1746467166489,1.40855124,94674.0,94673.0,0.00857733]
[1746467166686,1.44742249,94674.0,94673.0,0.00305752]
[1746467166888,1.76415124,94674.0,94673.0,0.00305752]
[1746467169101,1.78055124,94674.0,94673.0,0.00305752]
[1746467170300,1.79711785,94674.0,94673.0,0.00305752]
[1746467171069,1.78071785,94674.0,94673.0,0.00305752]
[1746467173203,1.76511785,94674.0,94673.0,0.00305752]
[1746467175347,1.55386661,94674.0,94673.0,0.00305752]
[1746467175557,1.76511785,94674.0,94673.0,0.00305752]
[1746467176313,1.55386661,94674.0,94673.0,0.21431099]
[1746467176521,1.55386661,94674.0,94673.0,0.23001099]
[1746467176522,1.21386661,94674.0,94673.0,0.23001099]
[1746467176728,1.1973,94674.0,94673.0,0.23560987]
[1746467177734,0.6973,94674.0,94673.0,0.23560987]
[1746467178531,0.6973,94674.0,94673.0,0.25180987]
[1746467179860,0.71386473,94674.0,94673.0,0.25180987]
[1746467180040,0.01656473,94674.0,94673.0,0.25180987]
[1746467182078,0.01656473,94674.0,94673.0,0.29931156]
[1746467182918,0.00264012,94696.0,94695.0,0.21120439]
[1746467183116,0.6973,94697.0,94696.0,0.21120216]
[1746467183318,0.6973,94697.0,94696.0,0.21668242]
[1746467183752,0.71386252,94697.0,94696.0,0.21668242]
[1746467184315,0.71386252,94697.0,94696.0,0.00548026]
[1746467184539,0.008,94696.0,94695.0,0.21120439]
[1746467184950,0.004,94696.0,94695.0,0.21120439]
[1746467185167,0.00664006,94696.0,94694.0,0.21120662]
[1746467185361,0.00264006,94696.0,94694.0,0.21120662]
[1746467185665,0.22440275,94696.0,94693.0,0.2112082]
[1746467185830,0.01056044,94693.0,94681.0,0.01056178]
[1746467186046,0.01056055,94692.0,94688.0,0.21122]
[1746467186244,0.01056088,94689.0,94680.0,0.01056189]
[1746467186446,0.010561,94688.0,94684.0,0.2112271]
[1746467186645,0.2112266,94687.0,94684.0,0.2112271]
[1746467186969,0.02712477,94688.0,94685.0,0.21122513]
[1746467187371,0.01056122,94686.0,94683.0,0.21123014]
[1746467187669,0.01056111,94687.0,94685.0,0.21122568]
[1746467188168,0.22178343,94687.0,94685.0,0.21122568]
[1746467188538,0.01056155,94683.0,94674.0,0.01056256]
[1746467188739,0.01056155,94683.0,94674.0,0.21125046]
[1746467188740,0.010562,94679.0,94674.0,0.21125046]
[1746467188939,0.010562,94679.0,94676.0,0.21124462]
[1746467189149,0.22180194,94680.0,94677.0,0.21124247]
[1746467189349,0.21123526,94682.0,94679.0,0.21123792]
[1746467189350,0.22179692,94682.0,94679.0,0.21123792]
[1746467189702,0.22179975,94680.0,94678.0,0.21124199]
[1746467189900,0.01056178,94681.0,94678.0,0.21124199]
[1746467190347,0.5,94679.0,94678.0,0.21124199]
[1746467194114,0.01056233,94676.0,94673.0,5.752e-05]
[1746467194283,0.21125029,94675.0,94673.0,0.21131089]
[1746467194484,0.5,94679.0,94674.0,0.22717765]
[1746467194748,0.5,94679.0,94678.0,0.21124231]
[1746467195127,1.564062,94679.0,94678.0,0.00535884]
[1746467195343,0.21125124,94674.0,94673.0,0.00105752]
[1746467195556,0.22745124,94674.0,94673.0,0.00105752]
[1746467196334,0.24305124,94674.0,94673.0,0.00105752]
[1746467196939,0.24305124,94674.0,94673.0,5.752e-05]
[1746467197139,0.22745124,94674.0,94673.0,5.752e-05]
[1746467197587,0.72745124,94674.0,94673.0,5.752e-05]
[1746467197928,0.72745124,94674.0,94673.0,0.00105752]
[1746467198732,1.42475124,94674.0,94673.0,0.00105752]
[1746467199056,1.42475124,94674.0,94673.0,0.00205752]
[1746467199955,1.1973,94674.0,94673.0,0.00205752]
[1746467200187,1.40855124,94674.0,94673.0,0.00205752]
[1746467200305,1.1973,94674.0,94673.0,0.25030982]
[1746467200961,1.21386512,94674.0,94673.0,0.25030982]
[1746467201162,0.71386512,94674.0,94673.0,0.25030982]
[1746467204240,0.71386512,94674.0,94673.0,0.28686318]
[1746467204441,0.71386512,94674.0,94673.0,0.25030982]
[1746467204855,0.01656512,94674.0,94673.0,0.25030982]
[1746467206634,0.34,94693.0,94692.0,0.21121108]
[1746467207080,0.34,94693.0,94692.0,0.21675022]
[1746467207227,0.55120885,94693.0,94692.0,0.00553914]
[1746467207554,0.34,94693.0,94690.0,0.01056077]
[1746467207710,0.34,94693.0,94688.0,0.21121951]
[1746467207896,0.343,94693.0,94692.0,0.21121108]
[1746467208111,0.846,94693.0,94692.0,0.21675022]
[1746467208332,0.843,94693.0,94692.0,0.21675022]
[1746467208700,0.846,94693.0,94692.0,0.00553914]
[1746467209061,0.843,94693.0,94691.0,0.21121289]
[1746467209308,0.846,94693.0,94692.0,0.00553914]
[1746467209664,0.8625628,94693.0,94690.0,0.22177199]
[1746467209846,0.8625628,94693.0,94691.0,0.21675297]
[1746467210047,0.8595628,94693.0,94691.0,0.21675297]
[1746467210449,0.8595628,94693.0,94691.0,0.00554039]
[1746467210652,0.8625628,94693.0,94689.0,0.22177836]
[1746467211062,0.01056077,94690.0,94687.0,0.21122191]
[1746467211283,0.22441386,94692.0,94688.0,0.00543236]
[1746467211485,0.01056055,94692.0,94690.0,0.21121469]
[1746467211683,0.01056066,94691.0,94687.0,0.01056111]
[1746467211957,0.01056066,94691.0,94689.0,0.21121653]
[1746467212210,0.01056066,94691.0,94690.0,0.00542986]
[1746467213176,0.22177397,94691.0,94690.0,0.00542986]
[1746467213860,0.01056055,94692.0,94690.0,0.2166454]
[1746467214130,0.002,94691.0,94690.0,0.2166454]
[1746467214344,0.002,94691.0,94690.0,0.00542986]
[1746467214579,0.2247726,94692.0,94690.0,0.00542986]
[1746467214734,0.002,94691.0,94690.0,0.00542986]
[1746467214938,0.01256066,94691.0,94687.0,0.22177907]
[1746467215096,0.21121554,94690.0,94687.0,0.22021143]
[1746467215304,0.21121554,94690.0,94688.0,0.00452697]
[1746467216154,0.21121777,94689.0,94688.0,0.00452697]
[1746467216358,0.22177865,94689.0,94686.0,0.01056122]
[1746467217268,0.22177865,94689.0,94687.0,0.00452822]
[1746467217473,0.22177865,94689.0,94686.0,0.22178525]
[1746467217774,0.22177865,94689.0,94687.0,0.00452822]
[1746467217979,0.22377865,94689.0,94687.0,0.00452822]
[1746467218193,0.22577865,94689.0,94686.0,0.22178525]
[1746467218369,0.22577865,94689.0,94688.0,0.00452697]
[1746467218554,0.21122,94688.0,94687.0,0.00452822]
[1746467218757,0.21122,94688.0,94686.0,0.01056122]
[1746467219409,0.22577865,94689.0,94687.0,0.21122223]
[1746467219410,0.004,94689.0,94687.0,0.21122223]
[1746467219612,0.21521783,94689.0,94686.0,0.22178361]
[1746467220436,0.21321783,94689.0,94686.0,0.22178361]
[1746467220812,0.21521783,94689.0,94686.0,0.22178361]
[1746467221018,0.2423422,94689.0,94686.0,0.22178361]
[1746467221440,0.21122033,94688.0,94686.0,0.22178361]
[1746467221778,0.21322033,94688.0,94686.0,0.22178361]
[1746467222743,0.21322033,94688.0,94687.0,0.00452822]
[1746467222880,0.21322033,94688.0,94686.0,0.22178361]
[1746467223083,0.21322033,94688.0,94687.0,0.00452822]
[1746467223281,0.21322033,94688.0,94686.0,0.22178361]
[1746467223478,0.21322033,94688.0,94687.0,0.00452822]
[1746467223724,0.002,94688.0,94687.0,0.21122223]
[1746467223896,0.002,94688.0,94687.0,0.00452822]
[1746467224104,0.002,94688.0,94686.0,0.22178361]
[1746467224327,0.004,94688.0,94687.0,0.00452822]
[1746467224528,0.004,94688.0,94687.0,0.21122223]
[1746467224727,0.01656349,94689.0,94688.0,0.21122]
[1746467224907,0.01656349,94689.0,94688.0,0.20922]
[1746467225111,0.01656349,94689.0,94688.0,0.21174697]
[1746467225567,0.01656349,94689.0,94688.0,0.21574697]
[1746467225753,0.01656349,94689.0,94688.0,0.00452697]
[1746467225939,0.01856349,94689.0,94687.0,0.21122223]
[1746467226322,0.01856349,94689.0,94687.0,0.21122065]
[1746467226520,0.01856349,94689.0,94688.0,0.0045557]
[1746467226712,0.23125799,94689.0,94688.0,0.0045557]
[1746467226912,0.21123624,94681.0,94677.0,0.01056222]
[1746467227113,0.22179802,94681.0,94679.0,0.21123948]
[1746467227346,0.01056178,94681.0,94680.0,0.00456573]
[1746467227514,0.22179514,94682.0,94680.0,0.21580358]
[1746467227990,0.01056166,94682.0,94680.0,0.21580358]
[1746467228629,0.01056166,94682.0,94680.0,0.02096573]
[1746467228783,0.2112329,94683.0,94680.0,0.01512762]
[1746467228989,0.21123562,94681.0,94680.0,0.00456573]
[1746467229372,0.21124296,94678.0,94674.0,0.02606256]
[1746467229598,0.21124296,94678.0,94676.0,0.21124618]
[1746467230034,0.21124296,94678.0,94677.0,0.00456949]
[1746467230338,0.01656399,94681.0,94680.0,0.21123785]
[1746467230542,0.01656399,94681.0,94680.0,0.23230358]
[1746467230845,0.01656399,94681.0,94680.0,0.24860358]
[1746467231643,0.01656399,94681.0,94680.0,0.24960358]
[1746467232449,0.01656399,94681.0,94680.0,0.25060358]
[1746467236653,0.34,94693.0,94692.0,0.21121108]
[1746467237005,0.34,94693.0,94692.0,0.21575328]
[1746467237209,0.34,94693.0,94692.0,0.20875328]
[1746467237971,0.84,94693.0,94692.0,0.20875328]
[1746467238191,0.841,94693.0,94692.0,0.20875328]
[1746467238342,0.842,94693.0,94692.0,0.20875328]
[1746467238551,0.502,94693.0,94692.0,0.24015328]
[1746467238825,0.502,94693.0,94692.0,0.22455328]
[1746467239049,0.502,94693.0,94692.0,0.20875328]
[1746467239226,0.002,94693.0,94692.0,0.0045422]
[1746467239621,0.002,94693.0,94691.0,0.21121283]
[1746467239832,0.01856278,94693.0,94691.0,0.21121283]
[1746467240031,0.01856278,94693.0,94692.0,0.21575328]
[1746467240483,0.01756278,94693.0,94692.0,0.21575328]
[1746467240619,0.01856278,94693.0,94692.0,0.21575328]
[1746467240819,0.01756278,94693.0,94692.0,0.0045422]
[1746467241097,0.01756278,94693.0,94692.0,0.21575328]
[1746467241240,0.01856278,94693.0,94692.0,0.21575328]
[1746467241583,0.01756278,94693.0,94692.0,0.21575328]
[1746467242181,0.01856278,94693.0,94692.0,0.21575328]
[1746467242608,0.01856278,94693.0,94692.0,0.24695328]
[1746467242923,0.01856278,94693.0,94692.0,0.23175328]
[1746467244026,0.01856278,94693.0,94692.0,0.21575328]
[1746467244354,0.01856278,94693.0,94692.0,0.21329548]
[1746467244723,0.01856278,94693.0,94692.0,0.20875328]
[1746467246910,0.002,94693.0,94692.0,0.20875328]
[1746467252589,0.002,94693.0,94692.0,0.20175328]
[1746467253600,0.002,94693.0,94687.0,0.23698227]
[1746467253601,0.21122446,94686.0,94674.0,0.0152]
[1746467253810,0.22652446,94686.0,94674.0,0.0164]
[1746467254009,0.22652446,94686.0,94679.0,0.22180192]
[1746467254211,0.22179548,94682.0,94679.0,0.21123992]
[1746467254445,0.22179548,94682.0,94678.0,0.22179998]
[1746467254864,0.01056133,94685.0,94680.0,0.01056189]
[1746467255005,0.22179318,94683.0,94680.0,0.01056189]
[1746467255206,0.22179318,94683.0,94679.0,0.22180201]
[1746467255412,0.21123645,94681.0,94679.0,0.011562]
[1746467255649,0.01056166,94682.0,94679.0,0.221802]
[1746467256088,0.01056166,94682.0,94680.0,0.001]
[1746467257488,0.01056166,94682.0,94679.0,0.21223958]
[1746467257644,0.01056166,94682.0,94679.0,0.22280158]
[1746467257847,0.01056166,94682.0,94679.0,0.22180158]
[1746467258075,0.01056166,94682.0,94680.0,0.001]
[1746467258283,0.22179598,94682.0,94680.0,0.002]
[1746467258502,0.22179598,94682.0,94679.0,0.22180158]
[1746467258722,0.01056144,94684.0,94681.0,0.01056178]
[1746467258941,0.22179119,94684.0,94681.0,0.01056178]
[1746467259752,0.23835489,94684.0,94681.0,0.01056178]
[1746467260324,0.21123172,94683.0,94681.0,0.01056178]
[1746467260937,0.22179327,94683.0,94680.0,0.22179967]
[1746467261188,0.22179327,94683.0,94680.0,0.22279967]
[1746467261343,0.22179327,94683.0,94680.0,0.22179967]
[1746467261591,0.01056155,94683.0,94681.0,0.21223468]
[1746467261938,0.01056155,94683.0,94681.0,0.21123468]
[1746467262646,0.22179473,94683.0,94680.0,0.22179967]
[1746467262869,0.01056222,94677.0,94674.0,0.04969428]
[1746467263415,0.211249,94675.0,94674.0,0.04969428]
[1746467263855,0.21125124,94674.0,94673.0,0.0497518]
[1746467264052,0.22685124,94674.0,94673.0,0.0497518]
[1746467264456,0.24341649,94674.0,94673.0,0.0497518]
[1746467264669,0.03216525,94674.0,94673.0,0.0497518]
[1746467264951,0.01656525,94674.0,94673.0,0.0517518]
[1746467265556,0.01656525,94674.0,94673.0,0.0537518]
[1746467265911,0.51656525,94674.0,94673.0,0.0537518]
[1746467266109,0.72781649,94674.0,94673.0,0.0537518]
[1746467266732,0.71125124,94674.0,94673.0,0.0537518]
[1746467267049,0.71125124,94674.0,94673.0,0.00405752]
[1746467268810,0.72745124,94674.0,94673.0,0.00405752]
[1746467269618,0.74401669,94674.0,94673.0,0.00405752]
[1746467271463,0.72781669,94674.0,94673.0,0.00405752]
[1746467273749,1.42511669,94674.0,94673.0,0.00405752]
[1746467276702,1.40855124,94674.0,94673.0,0.00405752]
[1746467278623,1.1973,94674.0,94673.0,0.21531099]
[1746467278997,1.1973,94674.0,94673.0,0.24701099]
[1746467279861,0.5,94674.0,94673.0,0.24701099]
[1746467280088,0.34,94692.0,94691.0,0.21121137]
[1746467280504,0.6973,94693.0,94692.0,0.21121108]
[1746467280911,0.71386307,94693.0,94692.0,0.21121108]
[1746467281331,0.71386307,94693.0,94692.0,0.20921108]
[1746467281752,0.71586307,94693.0,94692.0,0.20921108]
[1746467281954,0.71586307,94693.0,94692.0,0.21121108]
[1746467282823,0.71586307,94693.0,94692.0,0.22771108]
[1746467283018,0.71586307,94693.0,94692.0,0.24291108]
[1746467283663,0.71786307,94693.0,94692.0,0.24291108]
[1746467285492,0.71586307,94693.0,94692.0,0.24291108]
[1746467286060,0.71586307,94693.0,94692.0,0.24491108]
[1746467286436,0.71386307,94693.0,94692.0,0.24491108]
[1746467286639,0.6973,94693.0,94692.0,0.24691108]
[1746467286996,0.9473801,94693.0,94692.0,0.004]
[1746467287199,0.90850885,94693.0,94692.0,0.004]
[1746467287393,1.24850885,94693.0,94692.0,0.004]
[1746467287598,1.26400885,94693.0,94692.0,0.004]
[1746467288167,0.2112203,94688.0,94685.0,0.01056133]
[1746467288376,0.01056088,94689.0,94686.0,0.21122446]
[1746467288507,0.22177966,94689.0,94686.0,0.21122446]
[1746467289063,0.22177966,94689.0,94685.0,0.22178723]
[1746467289407,0.22177966,94689.0,94685.0,0.22178772]
[1746467289608,0.23834314,94689.0,94686.0,0.002]
[1746467289920,0.23834314,94689.0,94685.0,0.22178772]
[1746467289921,0.21122078,94688.0,94685.0,0.01056133]
[1746467290120,0.21122254,94687.0,94685.0,0.01056133]
[1746467290339,0.22178365,94687.0,94684.0,0.01056144]
[1746467290885,0.010561,94688.0,94686.0,0.21322446]
[1746467291061,0.22178238,94688.0,94686.0,0.002]
[1746467291476,0.22178238,94688.0,94685.0,0.21322644]
[1746467291797,0.22178238,94688.0,94685.0,0.21122644]
[1746467291998,0.22178238,94688.0,94686.0,0.002]
[1746467292766,0.22178238,94688.0,94685.0,0.21122644]
[1746467292967,0.01056111,94687.0,94685.0,0.002]
[1746467293171,0.21122446,94686.0,94685.0,0.002]
[1746467293796,0.010561,94688.0,94684.0,0.21122729]
[1746467294001,0.21122225,94687.0,94684.0,0.21122729]
[1746467294201,0.21122225,94687.0,94684.0,0.22178873]
[1746467294363,0.01656348,94689.0,94686.0,0.01056122]
[1746467294559,0.01656348,94689.0,94688.0,0.21122]
[1746467294765,0.01656348,94689.0,94688.0,0.24272]
[1746467295681,0.01656348,94689.0,94688.0,0.24472]
[1746467296202,0.34,94692.0,94691.0,0.21121331]
[1746467296412,0.34,94692.0,94691.0,0.24321331]
[1746467297209,0.22175488,94700.0,94692.0,0.21121108]
[1746467297413,0.01055988,94698.0,94692.0,0.24321108]
[1746467297611,0.22175488,94700.0,94692.0,0.24321108]
[1746467297915,0.6973,94698.0,94697.0,0.21119993]
[1746467298112,0.34,94699.0,94698.0,0.21119762]
[1746467298496,0.34,94699.0,94697.0,0.22175881]
[1746467298861,0.34,94699.0,94697.0,0.01055999]
[1746467299215,0.55119629,94699.0,94697.0,0.01055999]
[1746467299656,0.55119629,94699.0,94696.0,0.21120161]
[1746467299881,0.55119629,94699.0,94697.0,0.01055999]
[1746467300594,0.34,94699.0,94697.0,0.22175863]
[1746467300767,0.34,94699.0,94697.0,0.01055999]
[1746467300768,0.55119669,94699.0,94697.0,0.01055999]
[1746467301446,0.34,94697.0,94696.0,0.21120161]
[1746467302065,0.34,94697.0,94695.0,0.01056021]
[1746467302066,0.21120885,94693.0,94692.0,0.0158]
[1746467302266,0.21120885,94693.0,94690.0,0.22177584]
[1746467302466,0.22176573,94695.0,94691.0,0.21121309]
[1746467302688,0.0165624,94693.0,94692.0,0.2112106]
[1746467303030,0.0165624,94693.0,94692.0,0.21121108]